[Event "*** Titled Tuesday Blitz"]
[Site "Chess.com"]
[Date "2020.05.19"]
[Round "5"]
[White "Asteroxylon"]
[Black "Korchmar_Vasiliy"]
[Result "0-1"]
[WhiteElo "2414"]
[BlackElo "2608"]
[TimeControl "180+1"]
[EndTime "12:58:30 PDT"]
[Termination "Korchmar_Vasiliy won by checkmate"]

1. e4 {[%clk 0:03:00.9]} 1... c5 {[%clk 0:03:00.2]} 2. Nc3 {[%clk 0:02:59.9]}
2... d6 {[%clk 0:03:00.2]} 3. g3 {[%clk 0:03:00]} 3... Nc6 {[%clk 0:02:59]} 4.
Bg2 {[%clk 0:03:00.4]} 4... g6 {[%clk 0:02:59.6]} 5. d3 {[%clk 0:03:01]} 5...
Bg7 {[%clk 0:02:59.6]} 6. f4 {[%clk 0:03:01.6]} 6... Rb8 {[%clk 0:02:58.7]} 7.
a4 {[%clk 0:02:58.4]} 7... e6 {[%clk 0:02:50]} 8. Nf3 {[%clk 0:02:58]} 8... Nge7
{[%clk 0:02:50.1]} 9. O-O {[%clk 0:02:50.5]} 9... O-O {[%clk 0:02:49]} 10. Be3
{[%clk 0:02:48.9]} 10... a6 {[%clk 0:02:44.8]} 11. Qd2 {[%clk 0:02:46.2]} 11...
b5 {[%clk 0:02:44.4]} 12. axb5 {[%clk 0:02:46.3]} 12... axb5 {[%clk 0:02:45.3]}
13. Rae1 {[%clk 0:02:46.1]} 13... b4 {[%clk 0:02:42]} 14. Nd1 {[%clk 0:02:46.1]}
14... Ba6 {[%clk 0:02:31]} 15. b3 {[%clk 0:02:28.4]} 15... Qc7 {[%clk 0:02:21]}
16. g4 {[%clk 0:02:23.8]} 16... f5 {[%clk 0:02:11.9]} 17. Nf2 {[%clk 0:02:18.5]}
17... h6 {[%clk 0:01:25.1]} 18. gxf5 {[%clk 0:02:10.7]} 18... gxf5 {[%clk
0:01:22.7]} 19. e5 {[%clk 0:02:03.6]} 19... dxe5 {[%clk 0:01:16]} 20. fxe5
{[%clk 0:01:59.2]} 20... Nxe5 {[%clk 0:00:52.5]} 21. Bxh6 {[%clk 0:01:54.5]}
21... N7g6 {[%clk 0:00:43.4]} 22. Bxg7 {[%clk 0:01:46.3]} 22... Qxg7 {[%clk
0:00:44.3]} 23. Ng5 {[%clk 0:01:41.4]} 23... Nh4 {[%clk 0:00:35.3]} 24. Nfh3
{[%clk 0:01:37.5]} 24... Bb7 {[%clk 0:00:30.3]} 25. Bxb7 {[%clk 0:01:31.2]}
25... Rxb7 {[%clk 0:00:31.2]} 26. Kh1 {[%clk 0:01:23.5]} 26... Rb6 {[%clk
0:00:28.2]} 27. Re3 {[%clk 0:00:44.1]} 27... f4 {[%clk 0:00:15.8]} 28. Re4
{[%clk 0:00:42.5]} 28... f3 {[%clk 0:00:12.9]} 29. Qf2 {[%clk 0:00:36.4]} 29...
Nhg6 {[%clk 0:00:09.6]} 30. Rg1 {[%clk 0:00:33.8]} 30... Rf5 {[%clk 0:00:09.7]}
31. Qxc5 {[%clk 0:00:29.2]} 31... Rc6 {[%clk 0:00:08.3]} 32. Qf2 {[%clk
0:00:25.3]} 32... Qf6 {[%clk 0:00:07.3]} 33. d4 {[%clk 0:00:20.9]} 33... Nf7
{[%clk 0:00:04.1]} 34. Rge1 {[%clk 0:00:15.3]} 34... Nxg5 {[%clk 0:00:03.6]} 35.
Nxg5 {[%clk 0:00:14.4]} 35... Rxg5 {[%clk 0:00:04.5]} 36. d5 {[%clk 0:00:12.4]}
36... exd5 {[%clk 0:00:04.1]} 37. Re8+ {[%clk 0:00:12.2]} 37... Nf8 {[%clk
0:00:04.7]} 38. Rg1 {[%clk 0:00:11.3]} 38... Rxg1+ {[%clk 0:00:03.7]} 39. Qxg1+
{[%clk 0:00:12.2]} 39... Qg7 {[%clk 0:00:04.1]} 40. Qxg7+ {[%clk 0:00:11]} 40...
Kxg7 {[%clk 0:00:03.9]} 41. Kg1 {[%clk 0:00:11.9]} 41... Rxc2 {[%clk 0:00:04]}
42. Re7+ {[%clk 0:00:11.3]} 42... Kf6 {[%clk 0:00:03.7]} 43. Re8 {[%clk
0:00:11.3]} 43... Ne6 {[%clk 0:00:03.5]} 44. Kf1 {[%clk 0:00:10.5]} 44... Ke5
{[%clk 0:00:03.9]} 45. Re7 {[%clk 0:00:10.1]} 45... Rxh2 {[%clk 0:00:04]} 46.
Kg1 {[%clk 0:00:09.8]} 46... Rb2 {[%clk 0:00:04.5]} 47. Re8 {[%clk 0:00:09.2]}
47... Rxb3 {[%clk 0:00:05]} 48. Kf2 {[%clk 0:00:08.6]} 48... Rc3 {[%clk
0:00:04.1]} 49. Rb8 {[%clk 0:00:08.1]} 49... b3 {[%clk 0:00:04.6]} 50. Rb4
{[%clk 0:00:07.7]} 50... Rd3 {[%clk 0:00:05]} 51. Rb5 {[%clk 0:00:07.5]} 51...
Nd4 {[%clk 0:00:05.4]} 52. Rb8 {[%clk 0:00:07.5]} 52... Rd2+ {[%clk 0:00:06]}
53. Kg3 {[%clk 0:00:08.3]} 53... Rg2+ {[%clk 0:00:06.1]} 54. Kh3 {[%clk
0:00:09.2]} 54... Ke4 {[%clk 0:00:06.7]} 55. Re8+ {[%clk 0:00:09.8]} 55... Kd3
{[%clk 0:00:07.3]} 56. Rd8 {[%clk 0:00:09.8]} 56... Re2 {[%clk 0:00:07.5]} 57.
Rxd5 {[%clk 0:00:10.4]} 57... Kc4 {[%clk 0:00:07.8]} 58. Rd8 {[%clk 0:00:10.1]}
58... b2 {[%clk 0:00:08.3]} 59. Rc8+ {[%clk 0:00:11]} 59... Kd3 {[%clk 0:00:08]}
60. Rb8 {[%clk 0:00:11.5]} 60... Kc2 {[%clk 0:00:08.2]} 61. Rc8+ {[%clk
0:00:11.2]} 61... Kd1 {[%clk 0:00:08.6]} 62. Rb8 {[%clk 0:00:12.1]} 62... Rd2
{[%clk 0:00:09.1]} 63. Kg3 {[%clk 0:00:11.6]} 63... Ke2 {[%clk 0:00:08.8]} 64.
Kf4 {[%clk 0:00:11.5]} 64... f2 {[%clk 0:00:08.8]} 65. Re8+ {[%clk 0:00:12.2]}
65... Kd1 {[%clk 0:00:08.7]} 66. Kg3 {[%clk 0:00:12.6]} 66... f1=Q {[%clk
0:00:08.2]} 67. Kh4 {[%clk 0:00:12.5]} 67... Rh2+ {[%clk 0:00:07.6]} 68. Kg5
{[%clk 0:00:13.4]} 68... Rg2+ {[%clk 0:00:08.1]} 69. Kh6 {[%clk 0:00:13]} 69...
Qh1# {[%clk 0:00:08.7]} 0-1

[Event "*** Titled Tuesday Blitz"]
[Site "Chess.com"]
[Date "2020.05.19"]
[Round "5"]
[White "Norival"]
[Black "Koalaskakistis"]
[Result "1-0"]
[WhiteElo "2684"]
[BlackElo "2479"]
[TimeControl "180+1"]
[EndTime "12:58:31 PDT"]
[Termination "Norival won on time"]

1. d4 {[%clk 0:03:00.9]} 1... f5 {[%clk 0:02:59.6]} 2. g3 {[%clk 0:02:59.3]}
2... Nf6 {[%clk 0:02:59.6]} 3. Bg2 {[%clk 0:02:59.4]} 3... e6 {[%clk 0:02:58.2]}
4. c4 {[%clk 0:02:59.5]} 4... d6 {[%clk 0:02:56.4]} 5. Nc3 {[%clk 0:02:59]} 5...
Be7 {[%clk 0:02:55.5]} 6. b4 {[%clk 0:02:57]} 6... O-O {[%clk 0:02:54.4]} 7. Nf3
{[%clk 0:02:54.2]} 7... Ne4 {[%clk 0:02:48.2]} 8. Bb2 {[%clk 0:02:50.8]} 8...
Bf6 {[%clk 0:02:43.8]} 9. O-O {[%clk 0:02:49.3]} 9... Nd7 {[%clk 0:02:07.6]} 10.
Nxe4 {[%clk 0:02:20.5]} 10... fxe4 {[%clk 0:02:08.5]} 11. Nd2 {[%clk 0:02:20.7]}
11... d5 {[%clk 0:02:08.9]} 12. cxd5 {[%clk 0:02:15.7]} 12... exd5 {[%clk
0:02:09.4]} 13. Qb3 {[%clk 0:02:16]} 13... Nb6 {[%clk 0:02:05.2]} 14. Nxe4
{[%clk 0:02:14.9]} 14... Be6 {[%clk 0:01:59.1]} 15. Nc5 {[%clk 0:02:12.5]} 15...
Qe7 {[%clk 0:01:52.6]} 16. e4 {[%clk 0:02:05.9]} 16... Rae8 {[%clk 0:01:33.1]}
17. e5 {[%clk 0:01:58.7]} 17... Bg5 {[%clk 0:01:32.7]} 18. f4 {[%clk 0:01:58.1]}
18... Bh6 {[%clk 0:01:32.7]} 19. Nxb7 {[%clk 0:01:48]} 19... Nc4 {[%clk
0:01:29.2]} 20. Nc5 {[%clk 0:01:29.1]} 20... Nd2 {[%clk 0:01:25.5]} 21. Qd3
{[%clk 0:01:28]} 21... Nxf1 {[%clk 0:01:24.5]} 22. Rxf1 {[%clk 0:01:28.9]} 22...
g6 {[%clk 0:01:19.3]} 23. Qa6 {[%clk 0:01:21.6]} 23... Kh8 {[%clk 0:01:05.1]}
24. Nxe6 {[%clk 0:01:10.3]} 24... Qxe6 {[%clk 0:01:04.2]} 25. Qxe6 {[%clk
0:01:10.8]} 25... Rxe6 {[%clk 0:01:04.7]} 26. Bxd5 {[%clk 0:01:11.2]} 26... Rb6
{[%clk 0:01:04.8]} 27. Bc3 {[%clk 0:01:10]} 27... Rd8 {[%clk 0:01:02.7]} 28. Bg2
{[%clk 0:01:02.4]} 28... Bf8 {[%clk 0:00:58.2]} 29. a3 {[%clk 0:01:00.6]} 29...
a5 {[%clk 0:00:55.2]} 30. bxa5 {[%clk 0:00:45.8]} 30... Rb3 {[%clk 0:00:55.4]}
31. Rc1 {[%clk 0:00:40.1]} 31... Bxa3 {[%clk 0:00:24.6]} 32. Rc2 {[%clk
0:00:39.9]} 32... Bb4 {[%clk 0:00:19.8]} 33. Bxb4 {[%clk 0:00:27.5]} 33... Rxb4
{[%clk 0:00:20.7]} 34. a6 {[%clk 0:00:27.6]} 34... Ra4 {[%clk 0:00:18.9]} 35.
Bb7 {[%clk 0:00:27.3]} 35... Rdxd4 {[%clk 0:00:18.1]} 36. Kg2 {[%clk 0:00:26.4]}
36... h5 {[%clk 0:00:15]} 37. Kh3 {[%clk 0:00:25.9]} 37... Kg7 {[%clk
0:00:13.9]} 38. Rxc7+ {[%clk 0:00:25.8]} 38... Kh6 {[%clk 0:00:14.2]} 39. Rc6
{[%clk 0:00:24.5]} 39... Rd2 {[%clk 0:00:12.2]} 40. f5 {[%clk 0:00:21.8]} 40...
Raa2 {[%clk 0:00:12.1]} 41. Rxg6+ {[%clk 0:00:21.6]} 41... Kh7 {[%clk
0:00:12.2]} 42. Kh4 {[%clk 0:00:21.8]} 42... Rxh2+ {[%clk 0:00:11.8]} 43. Kg5
{[%clk 0:00:22.3]} 43... Ra3 {[%clk 0:00:12.1]} 44. Kf6 {[%clk 0:00:20.9]} 44...
Rb2 {[%clk 0:00:10.1]} 45. e6 {[%clk 0:00:20.7]} 45... Rb6 {[%clk 0:00:09.6]}
46. Rg7+ {[%clk 0:00:19]} 46... Kh6 {[%clk 0:00:08.5]} 47. Rg8 {[%clk
0:00:18.4]} 47... Kh7 {[%clk 0:00:06.1]} 48. Rc8 {[%clk 0:00:17.9]} 48... Ra5
{[%clk 0:00:05.2]} 49. Rc7+ {[%clk 0:00:16.2]} 49... Kh6 {[%clk 0:00:05.7]} 50.
Rd7 {[%clk 0:00:15.2]} 50... Rbb5 {[%clk 0:00:05.5]} 51. e7 {[%clk 0:00:14.4]}
51... Rxf5+ {[%clk 0:00:04.9]} 52. Ke6 {[%clk 0:00:14.5]} 52... Rfe5+ {[%clk
0:00:05.1]} 53. Kd6 {[%clk 0:00:14.7]} 53... Re1 {[%clk 0:00:03.2]} 54. Kc7
{[%clk 0:00:13.5]} 1-0

[Event "*** Titled Tuesday Blitz"]
[Site "Chess.com"]
[Date "2020.05.19"]
[Round "5"]
[White "mshuaau0"]
[Black "Savva09022009"]
[Result "0-1"]
[WhiteElo "2249"]
[BlackElo "2423"]
[TimeControl "180+1"]
[EndTime "12:58:32 PDT"]
[Termination "Savva09022009 won by resignation"]

1. e4 {[%clk 0:03:00.9]} 1... c5 {[%clk 0:02:58.9]} 2. Nf3 {[%clk 0:03:00.3]}
2... Nc6 {[%clk 0:02:59.5]} 3. d4 {[%clk 0:03:00.1]} 3... cxd4 {[%clk
0:03:00.4]} 4. Nxd4 {[%clk 0:03:00.7]} 4... Nf6 {[%clk 0:03:00.4]} 5. Nc3 {[%clk
0:03:01]} 5... d6 {[%clk 0:03:00.8]} 6. Be3 {[%clk 0:02:57.4]} 6... Ng4 {[%clk
0:03:00]} 7. Bg5 {[%clk 0:02:54.9]} 7... h6 {[%clk 0:02:57.9]} 8. Bh4 {[%clk
0:02:52.4]} 8... g5 {[%clk 0:02:58.5]} 9. Bg3 {[%clk 0:02:52]} 9... Bg7 {[%clk
0:02:57.5]} 10. Nxc6 {[%clk 0:02:42.6]} 10... bxc6 {[%clk 0:02:58.4]} 11. h3
{[%clk 0:02:41]} 11... Nf6 {[%clk 0:02:56]} 12. Bc4 {[%clk 0:02:30.1]} 12... O-O
{[%clk 0:02:49.1]} 13. O-O {[%clk 0:02:27]} 13... e5 {[%clk 0:02:46.7]} 14. Bb3
{[%clk 0:02:16.5]} 14... Be6 {[%clk 0:02:44]} 15. Re1 {[%clk 0:02:14.1]} 15...
Qc7 {[%clk 0:02:37.3]} 16. Qd3 {[%clk 0:02:11.6]} 16... Rad8 {[%clk 0:02:33.4]}
17. Rad1 {[%clk 0:02:05]} 17... Rfe8 {[%clk 0:02:28.2]} 18. Qa6 {[%clk
0:02:04.2]} 18... Bxb3 {[%clk 0:02:26.3]} 19. axb3 {[%clk 0:02:02.9]} 19... Qb6
{[%clk 0:02:25.6]} 20. Qxb6 {[%clk 0:02:02]} 20... axb6 {[%clk 0:02:26.5]} 21.
f3 {[%clk 0:01:59.4]} 21... h5 {[%clk 0:02:19.8]} 22. Ra1 {[%clk 0:01:58.9]}
22... h4 {[%clk 0:02:19.1]} 23. Bf2 {[%clk 0:01:58.4]} 23... b5 {[%clk
0:02:18.5]} 24. Ra6 {[%clk 0:01:57.7]} 24... Rc8 {[%clk 0:02:13]} 25. Rea1
{[%clk 0:01:53.7]} 25... d5 {[%clk 0:01:57.9]} 26. exd5 {[%clk 0:01:50.5]} 26...
cxd5 {[%clk 0:01:58.2]} 27. Nxb5 {[%clk 0:01:30.1]} 27... Rxc2 {[%clk
0:01:54.9]} 28. Nd6 {[%clk 0:01:18.8]} 28... Rd8 {[%clk 0:01:45.8]} 29. b4
{[%clk 0:01:13.2]} 29... Rxb2 {[%clk 0:01:33.8]} 30. Bc5 {[%clk 0:01:13]} 30...
e4 {[%clk 0:01:32.1]} 31. Ra8 {[%clk 0:01:07.6]} 31... Rf8 {[%clk 0:01:21.7]}
32. Rxf8+ {[%clk 0:01:02.4]} 32... Bxf8 {[%clk 0:01:22.6]} 33. Ra8 {[%clk
0:01:02.4]} 33... Nd7 {[%clk 0:01:19.5]} 34. fxe4 {[%clk 0:00:46.1]} 34... Nxc5
{[%clk 0:01:08.9]} 35. bxc5 {[%clk 0:00:45.5]} 35... d4 {[%clk 0:01:09.8]} 36.
c6 {[%clk 0:00:40.5]} 36... Rc2 {[%clk 0:01:07.2]} 37. Nf5 {[%clk 0:00:26.2]}
37... d3 {[%clk 0:01:01.8]} 38. Rd8 {[%clk 0:00:16.7]} 38... d2 {[%clk
0:00:55.9]} 39. Kf1 {[%clk 0:00:17]} 39... Kh7 {[%clk 0:00:48.9]} 40. Ke2 {[%clk
0:00:15.5]} 40... Bb4 {[%clk 0:00:47.2]} 41. Rd4 {[%clk 0:00:11.4]} 41... Rc1
{[%clk 0:00:44]} 42. c7 {[%clk 0:00:03.7]} 42... Ba5 {[%clk 0:00:26.5]} 43. c8=Q
{[%clk 0:00:03.1]} 43... Rxc8 {[%clk 0:00:25.2]} 44. Rxd2 {[%clk 0:00:02.7]}
44... Bxd2 {[%clk 0:00:24.7]} 45. Kxd2 {[%clk 0:00:03.6]} 45... Ra8 {[%clk
0:00:25.3]} 46. Ke3 {[%clk 0:00:04.5]} 46... Ra2 {[%clk 0:00:23.5]} 47. Kf3
{[%clk 0:00:05.4]} 47... Kg6 {[%clk 0:00:24]} 48. Ne3 {[%clk 0:00:05]} 48... Kf6
{[%clk 0:00:23.1]} 49. Ng4+ {[%clk 0:00:05]} 49... Ke6 {[%clk 0:00:22.6]} 50.
Ke3 {[%clk 0:00:05.5]} 50... Ra3+ {[%clk 0:00:21]} 51. Kf2 {[%clk 0:00:05.3]}
51... f5 {[%clk 0:00:19.9]} 52. exf5+ {[%clk 0:00:05.2]} 52... Kxf5 {[%clk
0:00:20.8]} 53. Ne3+ {[%clk 0:00:06]} 53... Ke4 {[%clk 0:00:20.3]} 54. Nf1
{[%clk 0:00:06.9]} 54... Ra2+ {[%clk 0:00:20.1]} 55. Kg1 {[%clk 0:00:07.4]}
55... Kf4 {[%clk 0:00:19.6]} 56. Nh2 {[%clk 0:00:07.7]} 56... Ra1+ {[%clk
0:00:18.7]} 57. Kf2 {[%clk 0:00:07.7]} 57... Ra2+ {[%clk 0:00:18.6]} 58. Kg1
{[%clk 0:00:07.3]} 58... Ke3 {[%clk 0:00:19.2]} 59. Ng4+ {[%clk 0:00:07.4]}
59... Ke2 {[%clk 0:00:19.2]} 60. Kh2 {[%clk 0:00:07.8]} 60... Kf1 {[%clk
0:00:18.1]} 61. Ne3+ {[%clk 0:00:07.8]} 61... Kf2 {[%clk 0:00:18.2]} 62. Ng4+
{[%clk 0:00:07]} 62... Ke2 {[%clk 0:00:18.7]} 63. Nh6 {[%clk 0:00:06.4]} 63...
Kf1 {[%clk 0:00:18.2]} 64. Nf7 {[%clk 0:00:02.1]} 64... Rxg2+ {[%clk 0:00:19.1]}
65. Kh1 {[%clk 0:00:02.2]} 65... Kf2 {[%clk 0:00:17.3]} 66. Ne5 {[%clk
0:00:01.9]} 66... Rg3 {[%clk 0:00:16.9]} 67. Nf3 {[%clk 0:00:02.1]} 67... Kxf3
{[%clk 0:00:15.9]} 68. Kh2 {[%clk 0:00:02.3]} 68... g4 {[%clk 0:00:16.2]} 69.
hxg4 {[%clk 0:00:02.1]} 69... Kxg4 {[%clk 0:00:17.1]} 0-1

[Event "*** Titled Tuesday Blitz"]
[Site "Chess.com"]
[Date "2020.05.19"]
[Round "5"]
[White "MrChampion_Coach"]
[Black "chessplayer9919"]
[Result "0-1"]
[WhiteElo "2303"]
[BlackElo "2497"]
[TimeControl "180+1"]
[EndTime "12:58:33 PDT"]
[Termination "chessplayer9919 won by checkmate"]

1. e4 {[%clk 0:02:59.7]} 1... c6 {[%clk 0:02:59.4]} 2. d4 {[%clk 0:02:56.5]}
2... d5 {[%clk 0:03:00.3]} 3. e5 {[%clk 0:02:57.1]} 3... Bf5 {[%clk 0:02:59.2]}
4. h4 {[%clk 0:02:57.1]} 4... h5 {[%clk 0:02:58.8]} 5. Nc3 {[%clk 0:02:56.8]}
5... e6 {[%clk 0:02:57.9]} 6. Nge2 {[%clk 0:02:56.8]} 6... c5 {[%clk 0:02:50.7]}
7. Ng3 {[%clk 0:02:47.8]} 7... Bg6 {[%clk 0:02:50.6]} 8. Be3 {[%clk 0:02:33.5]}
8... Nc6 {[%clk 0:02:48.7]} 9. Bb5 {[%clk 0:02:32.3]} 9... Rc8 {[%clk
0:02:43.8]} 10. dxc5 {[%clk 0:02:28.5]} 10... Ne7 {[%clk 0:02:41.6]} 11. Qd2
{[%clk 0:02:16.5]} 11... a6 {[%clk 0:02:33.2]} 12. Ba4 {[%clk 0:02:16.1]} 12...
Nf5 {[%clk 0:02:23.9]} 13. Nxf5 {[%clk 0:02:15.1]} 13... Bxf5 {[%clk 0:02:24.8]}
14. b4 {[%clk 0:02:12.6]} 14... Be7 {[%clk 0:02:19.6]} 15. Bg5 {[%clk
0:02:08.3]} 15... O-O {[%clk 0:02:12]} 16. Bxc6 {[%clk 0:02:02]} 16... bxc6
{[%clk 0:01:52.3]} 17. Ne2 {[%clk 0:02:01.5]} 17... f6 {[%clk 0:01:46.6]} 18.
exf6 {[%clk 0:01:51.7]} 18... Bxf6 {[%clk 0:01:39.5]} 19. Nd4 {[%clk 0:01:47.6]}
19... Qd7 {[%clk 0:01:32.1]} 20. c3 {[%clk 0:01:30.4]} 20... e5 {[%clk
0:01:25.9]} 21. Nf3 {[%clk 0:01:19.9]} 21... Be4 {[%clk 0:01:22]} 22. Bxf6
{[%clk 0:01:13]} 22... gxf6 {[%clk 0:01:18.2]} 23. Qh6 {[%clk 0:01:06.6]} 23...
Qf5 {[%clk 0:00:59.1]} 24. Rh3 {[%clk 0:01:00.1]} 24... Kf7 {[%clk 0:00:58.1]}
25. Rg3 {[%clk 0:00:55.6]} 25... Rg8 {[%clk 0:00:58.4]} 26. O-O-O {[%clk
0:00:30.7]} 26... Rxg3 {[%clk 0:00:56.2]} 27. fxg3 {[%clk 0:00:30.2]} 27... Bxf3
{[%clk 0:00:48.9]} 28. gxf3 {[%clk 0:00:29.3]} 28... Qxf3 {[%clk 0:00:49.4]} 29.
Qh7+ {[%clk 0:00:24]} 29... Ke6 {[%clk 0:00:49.7]} 30. Kc2 {[%clk 0:00:21.1]}
30... Qf5+ {[%clk 0:00:41.6]} 31. Qxf5+ {[%clk 0:00:19.7]} 31... Kxf5 {[%clk
0:00:42.5]} 32. Rf1+ {[%clk 0:00:17.9]} 32... Ke6 {[%clk 0:00:42.8]} 33. Kd3
{[%clk 0:00:17]} 33... Rg8 {[%clk 0:00:42.8]} 34. Rg1 {[%clk 0:00:16.1]} 34...
Rg4 {[%clk 0:00:42.1]} 35. a4 {[%clk 0:00:16]} 35... f5 {[%clk 0:00:41.7]} 36.
Ke3 {[%clk 0:00:14.8]} 36... d4+ {[%clk 0:00:33.8]} 37. cxd4 {[%clk 0:00:14.2]}
37... Rxd4 {[%clk 0:00:34.7]} 38. Rb1 {[%clk 0:00:13.3]} 38... Kd5 {[%clk
0:00:35.1]} 39. b5 {[%clk 0:00:12.7]} 39... axb5 {[%clk 0:00:28.8]} 40. axb5
{[%clk 0:00:13.6]} 40... cxb5 {[%clk 0:00:18.8]} 41. Rxb5 {[%clk 0:00:14.5]}
41... Kc6 {[%clk 0:00:19.1]} 42. Rb6+ {[%clk 0:00:12.9]} 42... Kxc5 {[%clk
0:00:19.2]} 43. Rh6 {[%clk 0:00:13.8]} 43... Kd5 {[%clk 0:00:10]} 44. Rxh5
{[%clk 0:00:13.3]} 44... f4+ {[%clk 0:00:10.5]} 45. gxf4 {[%clk 0:00:13]} 45...
Rxf4 {[%clk 0:00:11.4]} 46. Rh8 {[%clk 0:00:13.6]} 46... Ra4 {[%clk 0:00:11.5]}
47. h5 {[%clk 0:00:12.9]} 47... Ra3+ {[%clk 0:00:11.3]} 48. Kf2 {[%clk
0:00:12.7]} 48... Ke4 {[%clk 0:00:12.2]} 49. Rf8 {[%clk 0:00:11.8]} 49... Rh3
{[%clk 0:00:10.6]} 50. Rh8 {[%clk 0:00:10.2]} 50... Kf4 {[%clk 0:00:06.4]} 51.
Kg2 {[%clk 0:00:11.1]} 51... Rh4 {[%clk 0:00:05.1]} 52. Rf8+ {[%clk 0:00:07.9]}
52... Ke3 {[%clk 0:00:05.1]} 53. Re8 {[%clk 0:00:08.8]} 53... Rxh5 {[%clk
0:00:04.1]} 54. Rh8 {[%clk 0:00:09.7]} 54... Rxh8 {[%clk 0:00:03.7]} 55. Kg3
{[%clk 0:00:05.4]} 55... e4 {[%clk 0:00:04.6]} 56. Kg4 {[%clk 0:00:04.5]} 56...
Ra8 {[%clk 0:00:05.5]} 57. Kf5 {[%clk 0:00:05.1]} 57... Kf3 {[%clk 0:00:06]} 58.
Kg6 {[%clk 0:00:04.2]} 58... e3 {[%clk 0:00:06.9]} 59. Kh5 {[%clk 0:00:05.1]}
59... e2 {[%clk 0:00:07.8]} 60. Kg6 {[%clk 0:00:05.9]} 60... e1=Q {[%clk
0:00:07.8]} 61. Kh5 {[%clk 0:00:04.6]} 61... Qe5+ {[%clk 0:00:05.6]} 62. Kg6
{[%clk 0:00:04.5]} 62... Ra6+ {[%clk 0:00:06]} 63. Kh7 {[%clk 0:00:05.4]} 63...
Qc7+ {[%clk 0:00:06.9]} 64. Kg8 {[%clk 0:00:04.1]} 64... Ra8# {[%clk 0:00:07.8]}
0-1

[Event "*** Titled Tuesday Blitz"]
[Site "Chess.com"]
[Date "2020.05.19"]
[Round "5"]
[White "tsvet2005"]
[Black "GukeshDommaraju"]
[Result "1-0"]
[WhiteElo "2519"]
[BlackElo "2673"]
[TimeControl "180+1"]
[EndTime "12:58:37 PDT"]
[Termination "tsvet2005 won by resignation"]

1. d4 {[%clk 0:02:55.8]} 1... Nf6 {[%clk 0:03:00]} 2. c4 {[%clk 0:02:55.6]} 2...
g6 {[%clk 0:03:00.3]} 3. Nc3 {[%clk 0:02:55.9]} 3... Bg7 {[%clk 0:03:00.7]} 4.
e4 {[%clk 0:02:56.2]} 4... d6 {[%clk 0:03:01.1]} 5. Be2 {[%clk 0:02:56.4]} 5...
O-O {[%clk 0:03:01.2]} 6. Be3 {[%clk 0:02:56.6]} 6... e5 {[%clk 0:02:58.7]} 7.
d5 {[%clk 0:02:52.7]} 7... Na6 {[%clk 0:02:58.3]} 8. h4 {[%clk 0:02:52.7]} 8...
h5 {[%clk 0:02:58]} 9. f3 {[%clk 0:02:48.7]} 9... c6 {[%clk 0:02:49]} 10. Nh3
{[%clk 0:02:36.5]} 10... cxd5 {[%clk 0:02:39.7]} 11. cxd5 {[%clk 0:02:37.4]}
11... Bd7 {[%clk 0:02:39.5]} 12. Nf2 {[%clk 0:02:34.9]} 12... Rc8 {[%clk
0:02:32.4]} 13. Qd2 {[%clk 0:02:30.2]} 13... Nc5 {[%clk 0:02:29.3]} 14. b4
{[%clk 0:02:23.7]} 14... Na4 {[%clk 0:02:17.1]} 15. Nb5 {[%clk 0:02:15.3]} 15...
Bxb5 {[%clk 0:02:09.1]} 16. Bxb5 {[%clk 0:02:16.2]} 16... Nc3 {[%clk 0:02:09.3]}
17. Bd3 {[%clk 0:02:07.5]} 17... Nh7 {[%clk 0:01:15.7]} 18. a4 {[%clk
0:01:51.9]} 18... Qd7 {[%clk 0:01:12.4]} 19. b5 {[%clk 0:01:37.4]} 19... Nxd5
{[%clk 0:01:09.1]} 20. Bxa7 {[%clk 0:01:19.4]} 20... Nf4 {[%clk 0:00:57.7]} 21.
O-O {[%clk 0:01:12.6]} 21... d5 {[%clk 0:00:47.1]} 22. Be3 {[%clk 0:01:05.4]}
22... Nxd3 {[%clk 0:00:40.1]} 23. Qxd3 {[%clk 0:00:58.6]} 23... d4 {[%clk
0:00:40.2]} 24. Bd2 {[%clk 0:00:58.4]} 24... Rfe8 {[%clk 0:00:33.8]} 25. Rfc1
{[%clk 0:00:55.9]} 25... Nf8 {[%clk 0:00:33.3]} 26. Qb3 {[%clk 0:00:49.1]} 26...
Ne6 {[%clk 0:00:32.1]} 27. Nd3 {[%clk 0:00:49]} 27... Qe7 {[%clk 0:00:28.1]} 28.
g3 {[%clk 0:00:46.9]} 28... f5 {[%clk 0:00:28.2]} 29. Rxc8 {[%clk 0:00:38.4]}
29... Rxc8 {[%clk 0:00:27.9]} 30. Rc1 {[%clk 0:00:39.3]} 30... Rxc1+ {[%clk
0:00:27.1]} 31. Bxc1 {[%clk 0:00:40.2]} 31... Kh7 {[%clk 0:00:27.6]} 32. Qd5
{[%clk 0:00:35.8]} 32... fxe4 {[%clk 0:00:26.7]} 33. fxe4 {[%clk 0:00:33.5]}
33... Qf6 {[%clk 0:00:23.4]} 34. Kg2 {[%clk 0:00:30.4]} 34... g5 {[%clk
0:00:21.1]} 35. hxg5 {[%clk 0:00:19.4]} 35... Nxg5 {[%clk 0:00:21.2]} 36. Bxg5
{[%clk 0:00:19.1]} 36... Qxg5 {[%clk 0:00:22.1]} 37. Qe6 {[%clk 0:00:17.4]}
37... h4 {[%clk 0:00:19.8]} 38. Qh3 {[%clk 0:00:15.7]} 38... Qd2+ {[%clk
0:00:19.1]} 39. Nf2 {[%clk 0:00:15.3]} 39... Bf6 {[%clk 0:00:20]} 40. Qf5+
{[%clk 0:00:14.8]} 40... Kg7 {[%clk 0:00:20.2]} 41. Qd7+ {[%clk 0:00:14.7]}
41... Kh6 {[%clk 0:00:20.2]} 42. Qf5 {[%clk 0:00:13.3]} 42... Kg7 {[%clk
0:00:19.5]} 43. Qd7+ {[%clk 0:00:13.1]} 43... Kh6 {[%clk 0:00:17.3]} 44. Qf5
{[%clk 0:00:10.6]} 44... Qg5 {[%clk 0:00:05.4]} 45. Ng4+ {[%clk 0:00:07.3]}
45... Kg7 {[%clk 0:00:04.7]} 46. Qxg5+ {[%clk 0:00:06.2]} 46... Bxg5 {[%clk
0:00:04.6]} 47. Nxe5 {[%clk 0:00:06.9]} 47... hxg3 {[%clk 0:00:04.5]} 48. Kxg3
{[%clk 0:00:07.8]} 48... Bd8 {[%clk 0:00:04.6]} 49. Nd3 {[%clk 0:00:06.7]} 49...
Kf6 {[%clk 0:00:04.9]} 50. Kf4 {[%clk 0:00:06.2]} 50... b6 {[%clk 0:00:05.3]}
51. e5+ {[%clk 0:00:06.4]} 51... Ke6 {[%clk 0:00:05.7]} 52. Ke4 {[%clk
0:00:06.9]} 52... Bg5 {[%clk 0:00:05.3]} 53. Kxd4 {[%clk 0:00:06.1]} 53... Bd2
{[%clk 0:00:05.6]} 54. Ke4 {[%clk 0:00:05.8]} 54... Bg5 {[%clk 0:00:04.3]} 55.
Nf4+ {[%clk 0:00:06.1]} 55... Kd7 {[%clk 0:00:04.7]} 56. Kf5 {[%clk 0:00:06.1]}
56... Bd8 {[%clk 0:00:04.4]} 57. Nd5 {[%clk 0:00:06.1]} 57... Ke8 {[%clk
0:00:04]} 58. e6 {[%clk 0:00:06]} 58... Kf8 {[%clk 0:00:04.4]} 59. Ke5 {[%clk
0:00:05.4]} 59... Ke8 {[%clk 0:00:04.5]} 60. Kf5 {[%clk 0:00:03.3]} 60... Kf8
{[%clk 0:00:03.6]} 61. e7+ {[%clk 0:00:03.8]} 61... Bxe7 {[%clk 0:00:03.9]} 62.
Nxe7 {[%clk 0:00:04.7]} 62... Kxe7 {[%clk 0:00:04]} 63. Ke5 {[%clk 0:00:05.6]}
63... Kd7 {[%clk 0:00:04.3]} 64. Kd5 {[%clk 0:00:06]} 64... Kc7 {[%clk
0:00:04.8]} 65. Ke6 {[%clk 0:00:06.4]} 1-0